fUST/lending_fUST_20250618
["ID","MTS","AMOUNT","RATE_DAILY","PERIOD"]
[366401936,1750231853517,-707.66,0.00024219,6]
[366401937,1750231853527,-151.0,0.00024219,7]
[366401938,1750231853537,-151.0,0.00024219,7]
[366401939,1750231853546,-480.29,0.00024219,6]
[366401940,1750231853556,-1115.34,0.00024219,6]
[366401941,1750231853565,-549.21613312,0.00024219,6]
[366401942,1750231854322,-555.80483144,0.00019051,2]
[366401943,1750231854332,-555.80483144,0.00019051,2]
[366401944,1750231854342,-555.80483144,0.00019051,2]
[366401945,1750231854353,-59.51199814,0.00019051,2]
[366401946,1750231854506,-1751.88367746,0.00018861,2]
[366401947,1750231854518,-3248.11632254,0.00018861,2]
[366401948,1750231854528,-496.2928333,0.00019051,2]
[366401949,1750231854538,-555.80483144,0.00019051,2]
[366401950,1750231854547,-555.80483144,0.00019051,2]
[366401951,1750231854557,-555.80483144,0.00019051,2]
[366401952,1750231854567,-555.80483144,0.00019051,2]
[366401953,1750231854577,-555.80483144,0.00019051,2]
[366401954,1750231854586,-555.80483144,0.00019051,2]
[366401955,1750231854596,-555.80483144,0.00019051,2]
[366401956,1750231854606,-555.80483144,0.00019051,2]
[366401957,1750231854615,-555.80483144,0.00019051,2]
[366401958,1750231854625,-555.80483144,0.00019051,2]
[366401959,1750231854635,-555.80483144,0.00019051,2]
[366401960,1750231854644,-555.80483144,0.00019051,2]
[366401961,1750231854654,-555.80483144,0.00019051,2]
[366401962,1750231854663,-460.0,0.00021917,2]
[366401963,1750231854673,-460.0,0.00021917,6]
[366401964,1750231854683,-460.0,0.00022027,2]
[366401965,1750231854692,-460.0,0.00022027,6]
[366401966,1750231854703,-460.0,0.00022136,2]
[366401967,1750231854713,-460.0,0.00022136,6]
[366401968,1750231854723,-200.85,0.00022246,2]
[366401969,1750231854733,-460.0,0.00022246,6]
[366401970,1750231854743,-460.0,0.00022356,6]
[366401971,1750231854753,-515.09,0.00022465,6]
[366401972,1750231854763,-1316.41,0.00023123,6]
[366401973,1750231854774,-1316.41,0.00023232,6]
[366401974,1750231854784,-1316.41,0.00023342,6]
[366401975,1750231854795,-1316.41,0.00023452,6]
[366401976,1750231854806,-1316.41,0.00023561,6]
[366401977,1750231854816,-1316.41,0.00023671,6]
[366401978,1750231854827,-168.22107849,0.0002368,2]
[366401979,1750231854837,-964.0,0.00023728,2]
[366401980,1750231854851,-1316.41,0.0002378,6]
[366401981,1750231854861,-1316.41,0.0002389,6]
[366401982,1750231854872,-1316.41,0.00024,6]
[366401983,1750231854882,-1316.41,0.00024109,6]
[366401984,1750231854893,-95.84386688,0.00024219,6]
[366401985,1750231854902,-3292.14,0.00024219,6]
[366401986,1750231854912,-1166.69,0.00024219,6]
[366401987,1750231854923,-752.99,0.00024219,6]
[366401988,1750231854933,-1316.41,0.00024219,6]
[366401989,1750231854943,-567.76721111,0.00024245,10]
[366401990,1750231854953,-653.0,0.00024286,2]
[366401991,1750231854962,-2161.0,0.00024286,2]
[366401992,1750231854971,-324.54247563,0.00024309,2]
[366401993,1750231854981,-151.0,0.00024328,7]
[366401994,1750231854991,-643.49,0.00024328,6]
[366401995,1750231855001,-1625.78,0.00024328,6]
[366401996,1750231855010,-1085.1,0.00024328,6]
[366401997,1750231855020,-1859.13,0.00024328,6]
[366401998,1750231855030,-1458.99,0.00024328,6]
[366401999,1750231855039,-507.45,0.00024328,6]
[366402000,1750231855049,-796.34,0.00024328,6]
[366402001,1750231855058,-492.91,0.00024328,6]
[366402002,1750231855067,-707.66,0.00024328,6]
[366402003,1750231855078,-1115.34,0.00024328,6]
[366402004,1750231855088,-645.06,0.00024328,6]
[366402005,1750231855098,-3292.14,0.00024328,6]
[366402006,1750231855107,-1166.69,0.00024328,6]
[366402007,1750231855118,-752.99,0.00024328,6]
[366402008,1750231855128,-1316.41,0.00024328,6]
[366402009,1750231855138,-306.0,0.00024329,2]
[366402010,1750231855147,-153.0,0.00024329,2]
[366402011,1750231855158,-177.1504183,0.00024329,2]
[366402012,1750231855168,-629.6036303,0.00024329,2]
[366402013,1750231855178,-574.2153043,0.00024329,2]
[366402014,1750231855188,-177.1504183,0.00024329,2]
[366402015,1750231855198,-177.1504183,0.00024329,2]
[366402016,1750231855208,-153.0,0.00024329,2]
[366402017,1750231855217,-574.2153043,0.00024329,2]
[366402018,1750231855227,-368.2898999,0.00024329,2]
[366402019,1750231855236,-153.0,0.00024329,2]
[366402020,1750231855246,-153.0,0.00024329,2]
[366402021,1750231855256,-354.3008366,0.00024329,2]
[366402022,1750231855266,-238.341457,0.00024329,2]
[366402023,1750231855276,-574.2153043,0.00024329,2]
[366402024,1750231855287,-306.0,0.00024329,2]
[366402025,1750231855296,-325.0790001,0.00024329,2]
[366402026,1750231855307,-322.6313868,0.00024329,2]
[366402027,1750231855317,-574.2153043,0.00024329,2]
[366402028,1750231855327,-574.2153043,0.00024329,2]
[366402029,1750231855337,-309.8092932,0.00024329,2]
[366402030,1750231855435,-153.0,0.00024329,2]
[366402031,1750231855445,-4650.74777927,0.00024342,2]
[366402032,1750231855457,-2861.54228204,0.00024342,2]
[366402033,1750231855467,-5179.0,0.00024342,2]
[366402034,1750231855477,-74523.4,0.000244,7]
[366402035,1750231855487,-691.408467,0.00024401,3]
[366402036,1750231855498,-643.69,0.00024438,6]
[366402037,1750231855508,-1625.86720181,0.00024438,6]
[366402038,1750231855518,-1085.23,0.00024438,6]
[366402039,1750231855528,-1859.33,0.00024438,6]
[366402040,1750231855537,-1459.04932473,0.00024438,6]
[366402041,1750231855547,-507.62,0.00024438,6]
[366402042,1750231855557,-796.51753853,0.00024438,6]
[366402043,1750231855566,-492.95953987,0.00024438,6]
[366402044,1750231855576,-707.81,0.00024438,6]
[366402045,1750231855586,-1115.51,0.00024438,6]
[366402046,1750231855596,-645.06,0.00024438,6]
[366402047,1750231855606,-3292.35046487,0.00024438,6]
[366402048,1750231855615,-1166.82696541,0.00024438,6]
[366402049,1750231855625,-753.13,0.00024438,6]
[366402050,1750231855635,-1316.61,0.00024438,6]
[366402051,1750231855644,-567.76721111,0.00024452,11]
[366402052,1750231855653,-365.14955254,0.00024483,2]
[366402053,1750231855663,-1412.75,0.000245,2]
[366402054,1750231855672,-160.0,0.0002454,2]
[366402055,1750231855682,-153.0,0.00024603,2]
[366402056,1750231855692,-153.0,0.00024603,2]
[366402057,1750231855702,-153.0,0.00024603,2]
[366402058,1750231855712,-153.0,0.00024603,2]
[366402059,1750231855721,-153.0,0.00024603,2]
[366402060,1750231855730,-153.0,0.00024603,2]
[366402061,1750231855739,-153.0,0.00024603,2]
[366402062,1750231855749,-153.0,0.00024603,2]
[366402063,1750231855759,-153.0,0.00024603,2]
[366402064,1750231855768,-151.0,0.00024613,7]
[366402065,1750231855778,-429.78474181,0.00024641,2]
[366402066,1750231855787,-1000.0,0.00024658,2]
[366402067,1750231855797,-1000.0,0.00024658,2]
[366402068,1750231855806,-1000.0,0.00024658,2]
[366402069,1750231855816,-608.0,0.00024658,2]
[366402070,1750231855826,-567.76721111,0.00024659,11]
[366402071,1750231855836,-823.0,0.00024668,2]
[366402072,1750231855851,-823.0,0.0002467,2]
[366402073,1750231855861,-151.0,0.000247,7]
[366402074,1750231855870,-151.0,0.000247,7]
[366402075,1750231855879,-170.245734,0.000247,7]
[366402076,1750231855889,-151.0,0.000247,7]
[366402077,1750231855898,-296.709909,0.000247,7]
[366402078,1750231855907,-639.0,0.000247,2]
[366402079,1750231855917,-151.0,0.000247,7]
[366402080,1750231855927,-151.0,0.00024712,7]
[366402081,1750231855936,-1003.790933,0.00024712,2]
[366402082,1750231855946,-1003.790933,0.00024712,2]
[366402083,1750231855959,-151.0,0.00024712,7]
[366402084,1750231855969,-3000.0,0.00024712,2]
[366402085,1750231855979,-3000.0,0.00024712,2]
[366402086,1750231855989,-3600.0,0.00024712,2]
[366402087,1750231855999,-151.0,0.00024724,7]
[366402088,1750231856008,-151.0,0.000248,7]
[366402089,1750231856018,-151.0,0.00024836,7]
[366402090,1750231856027,-500.0,0.0002485,2]
[366402091,1750231856037,-151.45049726,0.0002485,2]
[366402092,1750231856047,-237.66302639,0.0002485,2]
[366402093,1750231856056,-151.0,0.0002485,2]
[366402094,1750231856066,-151.0,0.0002485,2]
[366402095,1750231856075,-151.28791323,0.0002485,2]
[366402096,1750231856085,-500.0,0.0002485,2]
[366402097,1750231856095,-567.76721111,0.00024866,12]
[366402098,1750231856105,-465.0,0.00024877,2]
[366402099,1750231856115,-500.0,0.00024877,2]
[366402100,1750231856124,-254.42936742,0.00024877,2]
[366402101,1750231856133,-151.0,0.00024877,2]
[366402102,1750231856143,-500.0,0.00024877,2]
[366402103,1750231856153,-263.61661619,0.0002488,2]
[366402104,1750231856166,-421.83972121,0.0002488,2]
[366402105,1750231856178,-917.96657048,0.0002488,2]
[366402106,1750231856187,-500.22395119,0.0002489,6]
[366402107,1750231982582,-215.91284731,0.00018478,2]
[366402108,1750232044985,-157.9690465,0.00018477,2]
[366402109,1750232048500,-204.76240816,0.00018292,2]
[366402110,1750232104774,-378.23402232,0.00018292,2]
[366402111,1750232114939,10477.996139,0.0002465,120]
[366402112,1750232157761,-289.88719468,0.00018292,2]
[366402113,1750232235791,-150.0,0.00018291,2]
[366402114,1750232285611,166.409756,0.00013699,2]
[366402117,1750232611714,5000.0,0.000181,2]
[366402118,1750232627430,5000.0,0.000181,2]
[366402119,1750232642791,5000.0,0.000181,2]
[366402120,1750232658595,958.53418294,0.000181,2]
[366402121,1750232946124,-349.69086734,0.000184,2]
[366402122,1750232946147,-1200.0,0.00018476,2]
[366402123,1750232946167,-300.0,0.00018477,2]
[366402124,1750232946188,-300.0,0.00018477,2]
[366402125,1750232946208,-300.0,0.00018477,2]
[366402126,1750232946229,-300.0,0.00018477,2]
[366402127,1750232946251,-5948.9795654,0.00018478,2]
[366402168,1750233032370,-3833.85671513,0.00018478,2]
[366402169,1750233032382,-2615.57374686,0.00018478,2]
[366402170,1750233032392,-230.97615787,0.00018943,2]
[366402171,1750233032403,-300.0,0.00019041,2]
[366402172,1750233032412,-124.93888123,0.00019041,2]
[366402173,1750233032424,-175.06111877,0.00019041,2]
[366402174,1750233032433,-1200.0,0.00019041,2]
[366402175,1750233032443,-5003.7758144,0.00019042,2]
[366402176,1750233032463,-4950.52073328,0.00019042,2]
[366402177,1750233032475,-40045.70345232,0.00019042,2]
[366402178,1750233032485,-500.0,0.00019042,2]
[366402180,1750233032494,-500.0,0.00019042,2]
[366402181,1750233032503,-500.0,0.00019042,2]
[366402183,1750233032513,-500.0,0.00019042,2]
[366402185,1750233032524,-500.0,0.00019042,2]
[366402186,1750233032534,-500.0,0.00019042,2]
[366402188,1750233032548,-500.0,0.00019042,2]
[366402190,1750233032557,-379.15052262,0.00019042,2]
[366402191,1750233032567,-500.0,0.00019042,2]
[366402193,1750233032576,-500.0,0.00019042,2]
[366402194,1750233032587,-500.0,0.00019042,2]
[366402196,1750233032597,-500.0,0.00019042,2]
[366402198,1750233032606,-310.74811945,0.00019042,2]
[366402200,1750233032615,-500.0,0.00019042,2]
[366402202,1750233032629,-500.0,0.00019042,2]
[366402204,1750233032638,-500.0,0.00019042,2]
[366402206,1750233032648,-500.0,0.00019042,2]
[366402208,1750233032657,-500.0,0.00019042,2]
[366402210,1750233032667,-500.0,0.00019042,2]
[366402212,1750233032676,-517.84829651,0.00019042,2]
[366402213,1750233032686,-500.0,0.00019042,2]
[366402214,1750233032695,-500.0,0.00019042,2]
[366402215,1750233032705,-500.0,0.00019042,2]
[366402216,1750233032714,-620.89053106,0.00019042,2]
[366402217,1750233032723,-395.24599623,0.00019042,2]
[366402218,1750233032733,-361.57572006,0.00019042,2]
[366402219,1750233032742,-500.0,0.00019042,2]
[366402220,1750233032751,-219.29913007,0.00019042,2]
[366402260,1750233038308,-409.45539161,0.00019042,2]
[366402262,1750233038318,-430.80449068,0.00019042,2]
[366402263,1750233038327,-351.59879402,0.00019042,2]
[366402264,1750233038337,-500.0,0.00019042,2]
[366402265,1750233038347,-500.0,0.00019042,2]
[366402266,1750233038356,-500.0,0.00019042,2]
[366402267,1750233038365,-500.0,0.00019042,2]
[366402268,1750233038374,-500.0,0.00019042,2]
[366402269,1750233038384,-500.0,0.00019042,2]
[366402270,1750233038393,-500.0,0.00019042,2]
[366402271,1750233038403,-445.20437973,0.00019042,2]
[366402272,1750233038413,-500.0,0.00019042,2]
[366402273,1750233038422,-500.0,0.00019042,2]
[366402274,1750233038432,-251.91776709,0.00019042,2]
[366402276,1750233038441,-179.61464035,0.00019042,2]
[366402278,1750233038451,-500.0,0.00019042,2]
[366402280,1750233038460,-500.0,0.00019042,2]
[366402282,1750233038470,-500.0,0.00019042,2]
[366402284,1750233038480,-243.76607209,0.00019042,2]
[366402286,1750233038490,-500.0,0.00019042,2]
[366402288,1750233038500,-500.0,0.00019042,2]
[366402289,1750233038509,-500.0,0.00019042,2]
[366402290,1750233038519,-500.0,0.00019042,2]
[366402291,1750233038529,-500.0,0.00019042,2]
[366402292,1750233038538,-500.0,0.00019042,2]
[366402293,1750233038551,-500.0,0.00019042,2]
[366402294,1750233038560,-500.0,0.00019042,2]
[366402295,1750233038569,-500.0,0.00019042,2]
[366402296,1750233038578,-500.0,0.00019042,2]
[366402297,1750233038589,-500.0,0.00019042,2]
[366402298,1750233038599,-44.14095633,0.00019042,2]
[366402299,1750233038610,-455.85904367,0.00019042,2]
[366402300,1750233038621,-500.0,0.00019042,2]
[366402301,1750233038631,-500.0,0.00019042,2]
[366402302,1750233038640,-500.0,0.00019042,2]
[366402303,1750233038650,-500.0,0.00019042,2]
[366402304,1750233038661,-500.0,0.00019042,2]
[366402305,1750233038671,-500.0,0.00019042,2]
[366402306,1750233038680,-500.0,0.00019042,2]
[366402307,1750233038689,-500.0,0.00019042,2]
[366402308,1750233038698,-500.0,0.00019042,2]
[366402309,1750233038708,-500.0,0.00019042,2]
[366402310,1750233038717,-500.0,0.00019042,2]
[366402311,1750233038727,-500.0,0.00019042,2]
[366402312,1750233038736,-500.0,0.00019042,2]
[366402313,1750233038745,-500.0,0.00019042,2]
[366402314,1750233038754,-500.0,0.00019042,2]
[366402315,1750233038763,-500.0,0.00019042,2]
[366402316,1750233038772,-500.0,0.00019042,2]
[366402317,1750233038781,-500.0,0.00019042,2]
[366402318,1750233038790,-500.0,0.00019042,2]
[366402319,1750233038800,-500.0,0.00019042,2]
[366402320,1750233038809,-500.0,0.00019042,2]
[366402321,1750233038818,-500.0,0.00019042,2]
[366402322,1750233038827,-500.0,0.00019042,2]
[366402323,1750233038837,-500.0,0.00019042,2]
[366402324,1750233038847,-500.0,0.00019042,2]
[366402325,1750233038864,-500.0,0.00019042,2]
[366402326,1750233038876,-500.0,0.00019042,2]
[366402327,1750233038886,-500.0,0.00019042,2]
[366402328,1750233038896,-621.22516628,0.00019042,2]
[366402329,1750233038907,-500.0,0.00019042,2]
[366402330,1750233038917,-500.0,0.00019042,2]
[366402331,1750233038929,-500.0,0.00019042,2]
[366402332,1750233038939,-500.0,0.00019042,2]
[366402333,1750233038950,-500.0,0.00019042,2]
[366402334,1750233038960,-500.0,0.00019042,2]
[366402335,1750233038970,-500.0,0.00019042,2]
[366402336,1750233038980,-500.0,0.00019042,2]
[366402337,1750233038989,-500.0,0.00019042,2]
[366402338,1750233038999,-500.0,0.00019042,2]
[366402339,1750233039008,-500.0,0.00019042,2]
[366402340,1750233039017,-500.0,0.00019042,2]
[366402341,1750233039027,-500.0,0.00019042,2]
[366402342,1750233039037,-500.0,0.00019042,2]
[366402343,1750233039046,-500.0,0.00019042,2]
[366402344,1750233039056,-500.0,0.00019042,2]
[366402345,1750233039065,-500.0,0.00019042,2]
[366402346,1750233039075,-500.0,0.00019042,2]
[366402347,1750233039085,-500.0,0.00019042,2]
[366402348,1750233039096,-649.99999999,0.00019042,2]
[366402349,1750233039106,-500.0,0.00019042,2]
[366402350,1750233039116,-500.0,0.00019042,2]
[366402351,1750233039126,-500.0,0.00019042,2]
[366402352,1750233039135,-500.0,0.00019042,2]
[366402353,1750233039145,-500.0,0.00019042,2]
[366402354,1750233039154,-438.35604219,0.00019042,2]
[366402355,1750233039164,-500.0,0.00019042,2]
[366402356,1750233039173,-500.0,0.00019042,2]
[366402357,1750233039183,-500.0,0.00019042,2]
[366402358,1750233039191,-500.0,0.00019042,2]
[366402359,1750233039201,-500.0,0.00019042,2]
[366402360,1750233039210,-160.0,0.00019053,2]
[366402361,1750233039222,-500.0,0.00019073,2]
[366402362,1750233039233,-500.0,0.00019073,2]
[366402363,1750233039243,-507.78191988,0.00019073,2]
[366402364,1750233039253,-7584.85336422,0.00019178,2]
[366402365,1750233039267,-2507.50307208,0.00019178,2]
[366402366,1750233039277,-238.58906163,0.00019433,2]
[366402367,1750233039287,-630.53,0.00019549,2]
[366402368,1750233039296,-1019.78071798,0.00019621,2]
[366402369,1750233039305,-1000.0,0.00019621,2]
[366402370,1750233039315,-230.97615786,0.00019818,2]
[366402371,1750233039324,-152.21406166,0.0002,2]
[366402372,1750233039334,-420.0,0.00020151,2]
[366402373,1750233039344,-718.01469284,0.00020168,2]
[366402374,1750233039353,-255.16769076,0.000202,2]
[366402375,1750233039363,-255.16769058,0.000202,2]
[366402376,1750233039372,-255.16769058,0.00020314,3]
[366402377,1750233039383,-160.0,0.00020423,2]
[366402378,1750233039393,-255.16769058,0.00020521,3]
[366402379,1750233039402,-205.206,0.00020644,2]
[366402380,1750233039412,-230.97615786,0.00020692,2]
[366402381,1750233039422,-255.16769058,0.00020728,3]
[366402382,1750233039431,-420.0,0.00020754,2]
[366402383,1750233039441,-1680.0,0.00020855,2]
[366402384,1750233039452,-921.86,0.000209,2]
[366402385,1750233039462,-255.16769058,0.00020934,4]
[366402386,1750233039472,-255.16769058,0.00021141,4]
[366402387,1750233039483,-1261.07,0.00021326,2]
[366402388,1750233039493,-255.16769058,0.00021348,5]
[366402389,1750233039503,-255.16769058,0.00021555,5]
[366402390,1750233039513,-230.97615786,0.00021567,2]
[366402391,1750233039523,-835.98428123,0.00021647,2]
[366402392,1750233039532,-160.0,0.00021659,2]
[366402393,1750233039543,-160.0,0.00021659,2]
[366402394,1750233039554,-229.98435572,0.00021659,2]
[366402395,1750233039564,-160.0,0.00021659,2]
[366402396,1750233039574,-845.78193577,0.00021659,2]
[366402397,1750233039586,-160.0,0.00021659,2]
[366402398,1750233039597,-255.16769058,0.00021762,5]
[366402399,1750233039607,-160.0,0.00021792,2]
[366402400,1750233039619,-460.0,0.00021917,6]
[366402401,1750233039629,-460.0,0.00021917,6]
[366402402,1750233039639,-440.0,0.00021917,6]
[366402403,1750233039649,-460.0,0.00021917,6]
[366402404,1750233039659,-164.88787343,0.00021917,6]
[366402405,1750233039669,-598.70142195,0.00021917,6]
[366402406,1750233039678,-460.0,0.00021917,6]
[366402407,1750233039688,-460.0,0.00021917,6]
[366402408,1750233039698,-460.0,0.00021917,6]
[366402409,1750233039707,-460.0,0.00021917,6]
[366402410,1750233039717,-308.67,0.00021917,6]
[366402411,1750233039727,-460.0,0.00021917,6]
[366402412,1750233039736,-460.0,0.00021917,6]
[366402413,1750233039746,-460.0,0.00021917,2]
[366402415,1750233039755,-460.0,0.00021917,6]
[366402416,1750233039765,-460.0,0.00021917,6]
[366402418,1750233039774,-360.38778703,0.00021917,6]
[366402420,1750233039784,-460.0,0.00021917,6]
[366402421,1750233039794,-460.0,0.00021917,6]
[366402422,1750233039804,-500.0,0.00021917,6]
[366402423,1750233039814,-460.0,0.00021917,6]
[366402424,1750233039823,-460.0,0.00021917,6]
[366402425,1750233039833,-460.0,0.00021917,6]
[366402426,1750233039842,-513.28,0.00021917,6]
[366402427,1750233039852,-460.0,0.00021917,6]
[366402428,1750233039862,-460.0,0.00021917,6]
[366402429,1750233039872,-460.0,0.00021917,6]
[366402430,1750233039881,-430.0,0.00021917,6]
[366402431,1750233039897,-545.85,0.00021917,6]
[366402432,1750233039909,-593.51014504,0.00021917,6]
[366402433,1750233039922,-460.0,0.00021917,6]
[366402434,1750233039932,-460.0,0.00021917,6]
[366402435,1750233039942,-460.0,0.00021917,6]
[366402436,1750233039953,-460.0,0.00021917,6]
[366402437,1750233039962,-460.0,0.00021917,6]
[366402438,1750233039971,-460.0,0.00021917,6]
[366402439,1750233039981,-466.57281657,0.00021917,6]
[366402440,1750233039990,-186.73654049,0.00021917,6]
[366402441,1750233040000,-460.0,0.00021917,6]
[366402442,1750233040010,-391.46205681,0.00021917,6]
[366402443,1750233040020,-460.0,0.00021917,6]
[366402444,1750233040030,-460.0,0.00021917,6]
[366402445,1750233040040,-460.0,0.00021917,6]
[366402446,1750233040050,-460.0,0.00021917,6]
[366402447,1750233040060,-460.0,0.00021917,6]
[366402448,1750233040070,-573.5839524,0.00021917,6]
[366402449,1750233040079,-269.53613733,0.00021917,6]
[366402450,1750233040089,-172.08974495,0.00021917,6]
[366402451,1750233040098,-460.0,0.00021917,6]
[366402453,1750233040107,-310.0,0.00021917,6]
[366402454,1750233040117,-460.0,0.00021917,6]
[366402455,1750233040127,-500.0,0.00021917,6]
[366402456,1750233040137,-618.1790528,0.00021917,6]
[366402457,1750233040147,-324.41798304,0.00021917,6]
[366402458,1750233040157,-282.2729348,0.00021917,6]
[366402459,1750233040167,-460.0,0.00021917,6]
[366402460,1750233040176,-440.0,0.00021917,6]
[366402461,1750233040186,-460.0,0.00021917,6]
[366402462,1750233040195,-457.79821121,0.00021917,6]
[366402463,1750233040205,-430.0,0.00021917,6]
[366402477,1750233040351,-430.0,0.00021917,6]
[366402479,1750233040361,-500.0,0.00021917,6]
[366402482,1750233040371,-415.83528251,0.00021917,6]
[366402484,1750233040380,-440.0,0.00021917,6]
[366402486,1750233040390,-460.0,0.00021917,6]
[366402487,1750233040400,-430.0,0.00021917,6]
[366402489,1750233040409,-440.0,0.00021917,6]
[366402491,1750233040419,-460.0,0.00021917,6]
[366402493,1750233040428,-460.0,0.00021917,6]
[366402495,1750233040438,-349.65993925,0.00021917,6]
[366402497,1750233040449,-460.0,0.00021917,6]
[366402499,1750233040458,-430.0,0.00021917,6]
[366402501,1750233040468,-834.99,0.00021917,6]
[366402502,1750233040478,-440.0,0.00021917,6]
[366402503,1750233040488,-430.0,0.00021917,6]
[366402504,1750233040498,-165.46,0.00021917,6]
[366402505,1750233040508,-460.0,0.00021917,6]
[366402506,1750233040518,-440.0,0.00021917,6]
[366402507,1750233040527,-570.41,0.00021917,6]
[366402509,1750233040537,-227.32093827,0.00021917,6]
[366402511,1750233040550,-460.0,0.00021917,6]
[366402513,1750233040560,-279.16264308,0.00021917,6]
[366402515,1750233040570,-460.0,0.00021917,6]
[366402517,1750233040581,-430.0,0.00021917,6]
[366402519,1750233040590,-460.0,0.00021917,6]
[366402521,1750233040600,-401.1086255,0.00021917,6]
[366402523,1750233040609,-440.0,0.00021917,6]
[366402524,1750233040619,-440.0,0.00021917,6]
[366402525,1750233040628,-440.0,0.00021917,6]
[366402526,1750233040638,-460.0,0.00021917,6]
[366402528,1750233040647,-440.0,0.00021917,6]
[366402530,1750233040656,-440.0,0.00021917,6]
[366402532,1750233040666,-430.0,0.00021917,6]
[366402533,1750233040677,-460.0,0.00021917,6]
[366402534,1750233040686,-460.0,0.00021917,6]
[366402535,1750233040696,-695.73,0.00021917,6]
[366402536,1750233040706,-460.0,0.00021917,6]
[366402537,1750233040715,-435.83474899,0.00021917,6]
[366402538,1750233040724,-460.0,0.00021917,6]
[366402539,1750233040733,-460.0,0.00021917,6]
[366402540,1750233040743,-460.0,0.00021917,6]
[366402541,1750233040752,-460.0,0.00021917,6]
[366402542,1750233040761,-460.0,0.00021917,6]
[366402543,1750233040773,-1154.85,0.00021917,6]
[366402544,1750233040783,-460.0,0.00021917,6]
[366402545,1750233040793,-460.0,0.00021917,6]
[366402546,1750233040802,-460.0,0.00021917,6]
[366402547,1750233040812,-488.72,0.00021917,6]
[366402548,1750233040822,-460.0,0.00021917,6]
[366402549,1750233040832,-440.0,0.00021917,6]
[366402550,1750233040841,-460.0,0.00021917,6]
[366402551,1750233040850,-460.0,0.00021917,2]
[366402552,1750233040860,-460.0,0.00021917,6]
[366402553,1750233040870,-460.0,0.00021917,6]
[366402554,1750233040880,-430.0,0.00021917,6]
[366402555,1750233040890,-420.0,0.00021917,6]
[366402556,1750233040899,-460.0,0.00021917,6]
[366402557,1750233040909,-498.72327715,0.00021917,6]
[366402558,1750233040918,-460.0,0.00021917,6]
[366402559,1750233040928,-430.0,0.00021917,6]
[366402560,1750233040938,-438.48526663,0.00021917,6]
[366402561,1750233040948,-460.0,0.00021917,6]
[366402562,1750233040957,-460.0,0.00021917,6]
[366402563,1750233040967,-430.0,0.00021917,6]
[366402564,1750233040977,-460.0,0.00021917,6]
[366402565,1750233040987,-460.0,0.00021917,6]
[366402566,1750233040996,-198.9,0.00021917,6]
[366402567,1750233041005,-460.0,0.00021917,6]
[366402568,1750233041015,-219.52110847,0.00021917,6]
[366402569,1750233041025,-545.36606361,0.00021917,6]
[366402570,1750233041035,-460.0,0.00021917,6]
[366402571,1750233041044,-445.9852084,0.00021917,6]
[366402572,1750233041054,-430.0,0.00021917,6]
[366402573,1750233041064,-460.0,0.00021917,6]
[366402574,1750233041074,-460.0,0.00021917,6]
[366402575,1750233041083,-460.0,0.00021917,6]
[366402576,1750233041095,-433.18408119,0.00021917,6]
[366402577,1750233041105,-430.0,0.00021917,6]
[366402578,1750233041115,-460.0,0.00021917,6]
[366402579,1750233041125,-460.0,0.00021917,6]